bitfinex/quotes_BTCUSD_20240730
["timestamp","ask_amount","ask_price","bid_price","bid_amount"]
[1722362637339,2.15443185,65872.0,65871.0,0.0157399]
[1722362637542,2.16443185,65872.0,65871.0,0.0157399]
[1722362637742,2.16480493,65872.0,65871.0,0.0157399]
[1722362637947,2.85082393,65872.0,65864.0,0.0001]
[1722362638144,2.85082393,65872.0,65842.0,0.0676]
[1722362638145,0.304737,65860.0,65842.0,0.0676]
[1722362638415,1.33184969,65860.0,65842.0,0.0676]
[1722362638627,0.313706,65853.0,65842.0,0.005]
[1722362638850,2.01468885,65853.0,65842.0,0.005]
[1722362639053,2.31839485,65853.0,65842.0,0.005]
[1722362639258,1.073132,65843.0,65842.0,0.005]
[1722362639472,2.40020968,65843.0,65842.0,0.005]
[1722362639680,2.50020968,65843.0,65842.0,0.005]
[1722362639887,2.50020968,65843.0,65832.0,0.03206865]
[1722362639888,1.282796,65833.0,65832.0,0.03206865]
[1722362640102,2.14102704,65833.0,65832.0,0.03206865]
[1722362640316,1.61365828,65833.0,65832.0,0.03206865]
[1722362640532,0.93972624,65833.0,65832.0,0.03206865]
[1722362640735,0.555698,65833.0,65832.0,0.09466865]
[1722362640941,0.859497,65833.0,65832.0,0.09466865]
[1722362641418,1.31392904,65833.0,65832.0,0.03206865]
[1722362641631,1.36999905,65833.0,65832.0,0.03206865]
[1722362641832,1.21936601,65833.0,65832.0,0.03206865]
[1722362642242,1.21935139,65833.0,65832.0,0.03206865]
[1722362642446,1.38398443,65833.0,65832.0,0.03206865]
[1722362642792,1.36998443,65833.0,65832.0,0.03206865]
[1722362643202,1.33104228,65833.0,65832.0,0.03206865]
[1722362643358,1.52943757,65833.0,65832.0,0.03206865]
[1722362643608,1.52943083,65833.0,65832.0,0.03206865]
[1722362643817,2.28862883,65833.0,65832.0,0.03206865]
[1722362644024,1.998624,65833.0,65832.0,0.03206865]
[1722362644435,2.31096632,65833.0,65832.0,0.03206865]
[1722362644864,1.55146932,65833.0,65823.0,0.00854]
[1722362645067,1.88998095,65824.0,65823.0,0.00854]
[1722362645296,2.19557344,65824.0,65823.0,0.00804]
[1722362645497,1.89189672,65824.0,65823.0,0.00804]
[1722362645723,1.83549589,65824.0,65823.0,0.00804]
[1722362645954,2.04258861,65824.0,65823.0,0.00804]
[1722362646218,2.34642861,65824.0,65823.0,0.00804]
[1722362646840,2.36042861,65824.0,65823.0,0.00804]
[1722362647034,2.34642861,65824.0,65823.0,0.00804]
[1722362647236,2.40192861,65824.0,65823.0,0.00538]
[1722362647445,1.671169,65822.0,65821.0,0.12443182]
[1722362647652,1.92180204,65822.0,65821.0,0.12443182]
[1722362648039,1.96184353,65822.0,65821.0,0.12443182]
[1722362648167,1.70752992,65822.0,65821.0,0.12443182]
[1722362648371,1.61795304,65822.0,65821.0,0.12443182]
[1722362649831,1.63195304,65822.0,65821.0,0.12443182]
[1722362650178,1.76375304,65822.0,65821.0,0.07945815]
[1722362650366,2.13821466,65822.0,65821.0,0.00668915]
[1722362650529,2.08160204,65822.0,65821.0,0.00668915]
[1722362650735,2.06760204,65822.0,65821.0,0.00668915]
[1722362651320,1.06373,65806.0,65805.0,0.0234499]
[1722362651520,1.31436304,65806.0,65805.0,0.0234499]
[1722362651963,1.61828604,65806.0,65805.0,0.0234499]
[1722362652199,1.60629019,65806.0,65805.0,0.0234499]
[1722362653186,2.29643619,65806.0,65805.0,0.0234499]
[1722362653388,2.36233619,65806.0,65805.0,0.0234499]
[1722362653590,2.05841319,65806.0,65805.0,0.0234499]
[1722362654043,1.60629019,65806.0,65805.0,0.0234499]
[1722362654251,1.75698451,65806.0,65805.0,0.0234499]
[1722362654452,1.61532789,65806.0,65805.0,0.0234499]
[1722362654708,1.61532789,65806.0,65774.0,0.04516845]
[1722362654709,0.0752,65785.0,65774.0,0.04516845]
[1722362654976,0.0752,65785.0,65761.0,0.01214154]
[1722362654977,0.45619,65762.0,65761.0,0.01214154]
[1722362655210,0.760317,65762.0,65761.0,0.01214154]
[1722362655476,0.860317,65762.0,65761.0,0.01214154]
[1722362655919,1.01095004,65762.0,65761.0,0.01214154]
[1722362656121,0.252063,65762.0,65761.0,0.01214154]
[1722362656368,0.70682304,65762.0,65761.0,0.01214154]
[1722362656573,1.31507704,65762.0,65761.0,0.01214154]
[1722362656809,1.76030404,65762.0,65761.0,0.01214154]
[1722362657001,1.91025232,65762.0,65761.0,0.01214154]
[1722362657207,1.31507704,65762.0,65761.0,0.01214154]
[1722362657413,0.70682304,65762.0,65761.0,0.01214154]
[1722362657672,0.70682304,65762.0,65761.0,0.07824154]
[1722362657871,0.152063,65762.0,65761.0,0.07824154]
[1722362658083,0.014,65762.0,65761.0,0.07824154]
[1722362658286,0.47019,65762.0,65761.0,0.07824154]
[1722362658487,0.774317,65762.0,65761.0,0.07824154]
[1722362658901,1.22907704,65762.0,65761.0,0.01214154]
[1722362659322,1.01095004,65762.0,65761.0,0.01214154]
[1722362659523,1.02495004,65762.0,65761.0,0.01214154]
[1722362659728,0.874317,65762.0,65761.0,0.01214154]
[1722362659854,0.152063,65762.0,65761.0,0.01214154]
[1722362660076,0.166063,65762.0,65761.0,0.05703573]
[1722362660434,0.1,65769.0,65761.0,0.01214154]
[1722362660667,0.304055,65778.0,65765.0,0.12566553]
[1722362660668,0.152055,65766.0,65765.0,0.12566553]
[1722362660874,0.252055,65766.0,65765.0,0.0808]
[1722362661076,0.556163,65766.0,65765.0,0.0808]
[1722362661508,0.860271,65766.0,65765.0,0.12565014]
[1722362661715,0.404108,65766.0,65765.0,0.12565014]
[1722362661922,0.252054,65766.0,65765.0,0.12564608]
[1722362662125,0.252054,65766.0,65765.0,0.0808]
[1722362662331,0.252054,65766.0,65765.0,0.12564608]
[1722362662468,0.556162,65766.0,65765.0,0.11028743]
[1722362662704,0.013,65766.0,65765.0,0.0808]
[1722362662902,0.013,65766.0,65765.0,0.21176262]
[1722362663105,0.0015542,65783.0,65765.0,0.25443304]
[1722362663304,0.00928366,65789.0,65779.0,0.0637]
[1722362663506,0.44444115,65797.0,65785.0,0.06723503]
[1722362663706,0.44444115,65797.0,65781.0,0.11205839]
[1722362663707,0.275,65791.0,65781.0,0.04480985]
[1722362663935,0.275,65791.0,65779.0,0.13093503]
[1722362663936,0.152021,65780.0,65779.0,0.0637]
[1722362664142,0.760107,65780.0,65779.0,0.0637]
[1722362664558,0.00928734,65801.0,65779.0,0.07786]
[1722362664559,0.304019,65786.0,65779.0,0.07786]
[1722362664766,0.15063304,65790.0,65779.0,0.0637]
[1722362664960,0.15063304,65798.0,65780.0,0.01006049]
[1722362665159,0.15063304,65798.0,65781.0,0.04480985]
[1722362665160,0.59507419,65798.0,65781.0,0.04480985]
[1722362665366,0.42563304,65798.0,65781.0,0.04480985]
[1722362665568,0.15201,65785.0,65782.0,0.01004345]
[1722362665795,0.15063304,65798.0,65784.0,0.044809]
[1722362666029,0.152006,65787.0,65785.0,0.044809]
[1722362666262,0.456024,65786.0,65785.0,0.01001789]
[1722362666504,0.760107,65780.0,65777.0,0.0779]
[1722362666979,1.06415,65780.0,65777.0,0.0779]
[1722362667222,0.760107,65780.0,65777.0,0.0779]
[1722362667708,1.05675963,65780.0,65777.0,0.0779]
[1722362667941,0.75271663,65780.0,65777.0,0.0779]
[1722362668168,0.44867363,65780.0,65779.0,0.08086]
[1722362668434,0.275,65807.0,65779.0,0.23149304]
[1722362668677,0.44444115,65799.0,65782.0,0.0629]
[1722362669221,0.456043,65783.0,65782.0,0.0629]
[1722362669223,1.064101,65783.0,65782.0,0.0629]
[1722362669703,1.064101,65783.0,65776.0,0.0635]
[1722362669704,0.760142,65777.0,65776.0,0.0635]
[1722362669934,1.064199,65777.0,65776.0,0.0635]
[1722362670445,0.760142,65777.0,65776.0,0.0635]
[1722362670919,0.760212,65771.0,65770.0,0.1403]
[1722362671185,0.002384,65776.0,65770.0,0.15433]
[1722362671665,0.002384,65776.0,65774.0,0.0603]
[1722362671887,0.002384,65776.0,65775.0,0.21397333]
[1722362672357,0.002384,65776.0,65775.0,0.23697333]
[1722362672557,0.002384,65776.0,65775.0,0.63396213]
[1722362672766,0.003,65777.0,65776.0,0.293231]
[1722362672958,0.151987,65795.0,65782.0,0.0603]
[1722362673222,0.151987,65795.0,65791.0,0.04485491]
[1722362673442,0.151974,65801.0,65793.0,0.0809]
[1722362673599,0.74831915,65816.0,65795.0,0.04485491]
[1722362673800,0.15063304,65815.0,65797.0,0.04485491]
[1722362674085,0.151959,65807.0,65798.0,0.07606537]
[1722362674292,0.4782,65818.0,65801.0,0.04485491]
[1722362674293,0.151958,65808.0,65801.0,0.04485491]
[1722362674501,0.151955,65809.0,65802.0,0.04485491]
[1722362674705,0.303898,65812.0,65803.0,0.04488194]
[1722362674909,0.4782,65818.0,65805.0,0.1412]
[1722362675121,0.4782,65818.0,65806.0,0.04488194]
[1722362675371,0.4782,65818.0,65808.0,0.04488194]
[1722362675576,0.151948,65812.0,65811.0,0.04488194]
[1722362675782,0.455843,65812.0,65811.0,0.06507881]
[1722362675986,0.303909,65809.0,65805.0,0.18608194]
[1722362676210,0.455884,65806.0,65805.0,0.1412]
[1722362676416,1.06373,65806.0,65805.0,0.1412]
[1722362676656,0.455884,65806.0,65805.0,0.1412]
[1722362676864,0.1,65816.0,65805.0,0.1412]
[1722362677071,0.1,65820.0,65809.0,0.04493395]
[1722362677283,0.151944,65814.0,65811.0,0.04493395]
[1722362677488,0.151941,65815.0,65812.0,0.06740093]
[1722362677691,0.00911002,65827.0,65813.0,0.09889911]
[1722362677902,0.44444115,65833.0,65819.0,0.1424]
[1722362678111,0.44444115,65833.0,65821.0,0.06745018]
[1722362678112,0.151924,65822.0,65821.0,0.06745018]
[1722362678314,0.759647,65820.0,65819.0,0.0674437]
[1722362678521,0.455794,65819.0,65817.0,0.08993357]
[1722362678726,0.15063304,65822.0,65818.0,0.06750426]
[1722362678930,0.151931,65819.0,65818.0,0.04500384]
[1722362679133,1.06352,65819.0,65818.0,0.04500384]
[1722362679376,0.97088334,65819.0,65815.0,0.04500384]
[1722362679585,0.97088334,65819.0,65813.0,0.06750426]
[1722362679586,0.303882,65815.0,65813.0,0.04500384]
[1722362679794,0.151947,65812.0,65811.0,0.04500384]
[1722362680025,0.859737,65812.0,65811.0,0.06750426]
[1722362680235,0.151957,65808.0,65807.0,0.0608]
[1722362680664,0.303902,65811.0,65807.0,0.0608]
[1722362680875,0.151953,65810.0,65808.0,0.01424]
[1722362681086,0.151952,65810.0,65808.0,0.01424]
[1722362681306,0.455863,65809.0,65808.0,0.0120944]
[1722362681771,0.151957,65808.0,65807.0,0.0608]
[1722362681992,0.759785,65808.0,65807.0,0.0608]
[1722362682192,0.455871,65808.0,65807.0,0.0608]
[1722362682400,0.151955,65809.0,65807.0,0.0608]
[1722362682600,0.151952,65810.0,65808.0,0.16354484]
[1722362682809,0.303864,65819.0,65807.0,0.0608]
[1722362683030,0.30385,65822.0,65814.0,0.13545294]
[1722362683239,0.1,65828.0,65816.0,0.13545294]
[1722362683443,0.455808,65817.0,65816.0,0.13545294]
[1722362683681,0.1,65821.0,65814.0,0.064]
[1722362683893,0.4782,65836.0,65815.0,0.25637151]
[1722362683894,0.151916,65826.0,65815.0,0.25637151]
[1722362684111,0.009416,65842.0,65825.0,0.1355375]
[1722362684364,0.151904,65831.0,65830.0,0.13552373]
[1722362684568,0.75952,65831.0,65830.0,0.01355237]
[1722362684774,0.75953,65830.0,65829.0,0.13554828]
[1722362685185,0.455752,65825.0,65824.0,0.20014104]
[1722362685392,0.303826,65827.0,65823.0,0.15063304]
[1722362685605,0.455752,65825.0,65824.0,0.06300217]
[1722362685811,0.455752,65825.0,65820.0,0.34384104]
[1722362685812,0.303835,65825.0,65820.0,0.1437]
[1722362686021,0.081,65834.0,65820.0,0.19955453]
[1722362686222,0.155927,65821.0,65820.0,0.064]
[1722362686349,0.759635,65821.0,65820.0,0.064]
[1722362686556,0.759647,65820.0,65819.0,0.20333343]
[1722362686753,0.759647,65820.0,65819.0,0.13554759]
[1722362686754,1.063506,65820.0,65819.0,0.13554759]
[1722362686965,1.063506,65820.0,65819.0,0.20334461]
[1722362687191,1.063506,65820.0,65819.0,0.18074786]
[1722362687192,1.367365,65820.0,65819.0,0.18074786]
[1722362687553,1.367365,65820.0,65819.0,0.13554759]
[1722362687968,1.368365,65820.0,65819.0,0.14554759]
[1722362688333,1.468365,65820.0,65819.0,0.01]
[1722362688593,1.772224,65820.0,65819.0,0.01]
[1722362688811,1.468365,65820.0,65819.0,0.01]
[1722362689000,1.772224,65820.0,65819.0,0.01]
[1722362689448,0.151952,65810.0,65807.0,0.04520027]
[1722362689665,0.455884,65806.0,65805.0,0.04520027]
[1722362689884,0.151971,65802.0,65801.0,0.04520027]
[1722362690110,0.151984,65796.0,65795.0,0.0829]
[1722362690319,0.151984,65796.0,65795.0,0.06784336]
[1722362690320,1.36786,65796.0,65795.0,0.06784336]
[1722362690543,0.303988,65792.0,65791.0,0.04523099]
[1722362690777,0.275,65800.0,65789.0,0.04523099]
[1722362690990,0.760005,65789.0,65788.0,0.04523099]
[1722362691193,0.27435932,65800.0,65787.0,0.14882835]
[1722362691194,0.760015,65788.0,65787.0,0.14882835]
[1722362691428,1.064021,65788.0,65787.0,0.12276451]
[1722362691842,1.064021,65788.0,65787.0,0.08096896]
[1722362692276,0.42499236,65800.0,65786.0,0.0656]
[1722362692277,1.064038,65787.0,65786.0,0.0656]
[1722362692703,0.760027,65787.0,65786.0,0.0656]
[1722362692908,0.760027,65787.0,65786.0,0.07668395]
[1722362692909,1.055338,65787.0,65786.0,0.07668395]
[1722362693744,0.74837965,65787.0,65786.0,0.08669332]
[1722362693945,0.75337965,65787.0,65786.0,0.08669332]
[1722362694149,0.157005,65787.0,65786.0,0.07668395]
[1722362694354,0.157005,65787.0,65786.0,0.16959332]
[1722362694559,0.15694826,65787.0,65786.0,0.16959332]
[1722362694807,0.152005,65787.0,65786.0,0.16959332]
[1722362695238,0.456016,65787.0,65786.0,0.16959332]
[1722362695461,1.064038,65787.0,65786.0,0.01000937]
[1722362695674,0.456064,65780.0,65779.0,0.1485]
[1722362695877,0.760107,65780.0,65779.0,0.16335]
[1722362696128,0.760107,65780.0,65779.0,0.17341901]
[1722362697015,0.456064,65780.0,65779.0,0.16335]
[1722362697429,0.760107,65780.0,65779.0,0.16635]
[1722362697637,0.760107,65780.0,65779.0,0.16335]
[1722362697638,0.456064,65780.0,65779.0,0.16335]
[1722362698056,0.152021,65780.0,65779.0,0.17641901]
[1722362698273,0.403962,65798.0,65779.0,0.35005205]
[1722362698514,2.7193854,65903.0,65794.0,0.07534716]
[1722362698515,0.00745691,65809.0,65794.0,0.07534716]
[1722362698735,0.15197,65803.0,65796.0,0.0654]
[1722362698941,0.369363,65820.0,65797.0,0.04047123]
[1722362698942,0.151971,65802.0,65797.0,0.04047123]
[1722362699157,0.0015542,65815.0,65797.0,0.05038691]
[1722362699158,0.0015542,65805.0,65797.0,0.05038691]
[1722362699370,0.303925,65806.0,65798.0,0.0346337]
[1722362699371,0.151976,65800.0,65798.0,0.0346337]
[1722362699581,0.303938,65803.0,65798.0,0.0346337]
[1722362699582,0.151971,65802.0,65798.0,0.0346337]
[1722362699829,0.303912,65809.0,65796.0,0.21603304]
[1722362699830,0.303863,65820.0,65799.0,0.2209232]
[1722362700046,0.44444115,65811.0,65799.0,0.21788386]
[1722362700257,0.15190722,65801.0,65800.0,0.03631839]
[1722362700477,0.303911,65809.0,65800.0,0.20995143]
[1722362700705,0.15063304,65826.0,65801.0,0.36192039]
[1722362700924,0.001,65802.0,65801.0,0.35888135]
[1722362701162,0.151971,65802.0,65801.0,0.31893304]
[1722362701368,0.151971,65802.0,65801.0,0.31719511]
[1722362701775,0.303929,65805.0,65801.0,0.31719511]
[1722362702002,0.303885,65815.0,65801.0,0.31719511]
[1722362702223,0.303873,65817.0,65802.0,0.11010546]
[1722362702441,0.0073692,65829.0,65803.0,0.24953304]
[1722362702650,0.151966,65804.0,65803.0,0.28589689]
[1722362702899,0.455898,65804.0,65803.0,0.11226385]
[1722362703104,0.455898,65804.0,65803.0,0.0759]
[1722362703105,0.75983,65804.0,65803.0,0.0759]
[1722362703518,0.303924,65806.0,65803.0,0.0759]
[1722362703718,0.303919,65807.0,65803.0,0.0769]
[1722362703938,0.30386,65820.0,65804.0,0.00769]
[1722362704144,0.15196,65807.0,65804.0,0.00769]
[1722362704357,0.151964,65805.0,65804.0,0.00769]
[1722362704567,0.303902,65811.0,65803.0,0.0759]
[1722362704772,0.151966,65804.0,65803.0,0.1364]
[1722362704978,0.25063304,65822.0,65803.0,0.15004]
[1722362705196,0.151949,65812.0,65804.0,0.13803061]
[1722362705409,0.151935,65818.0,65805.0,0.023]
[1722362705629,0.151938,65817.0,65806.0,0.29262912]
[1722362705902,0.1,65822.0,65807.0,0.0835]
[1722362706163,0.44444115,65833.0,65810.0,0.0605]
[1722362706399,0.44444115,65833.0,65813.0,0.0759]
[1722362706640,0.005,65818.0,65814.0,0.17667128]
[1722362706886,0.005,65818.0,65814.0,0.191796]
[1722362707126,0.005,65818.0,65817.0,0.07534716]
[1722362707367,0.005,65818.0,65817.0,0.31003304]
[1722362707640,0.01665874,65842.0,65817.0,0.34484882]
[1722362707641,0.15193,65820.0,65817.0,0.34484882]
[1722362707883,0.01665874,65842.0,65818.0,0.17363304]
[1722362707884,0.151927,65821.0,65818.0,0.17363304]
[1722362708118,0.303856,65821.0,65819.0,0.03829735]
[1722362708360,0.151931,65820.0,65819.0,0.18893039]
[1722362709095,0.45579,65820.0,65819.0,0.18893039]
[1722362709374,0.455802,65818.0,65817.0,0.1364]
[1722362709606,0.455802,65818.0,65817.0,0.0605]
[1722362709607,0.75967,65818.0,65817.0,0.0605]
[1722362709771,0.75967,65818.0,65817.0,0.07629247]
[1722362710017,0.75967,65818.0,65817.0,0.08603788]
[1722362710283,0.455802,65818.0,65817.0,0.08603788]
[1722362710734,0.1,65830.0,65817.0,0.22692551]
[1722362710965,0.30383,65827.0,65818.0,0.20720237]
[1722362711193,0.151918,65825.0,65819.0,0.0801]
[1722362711419,0.009416,65842.0,65820.0,0.35131041]
[1722362711624,0.009416,65842.0,65821.0,0.14673777]
[1722362711847,0.009416,65842.0,65823.0,0.04533041]
[1722362712059,0.009416,65842.0,65824.0,0.15063304]
[1722362712269,0.009416,65842.0,65824.0,0.18331888]
[1722362712270,0.151913,65827.0,65824.0,0.18331888]
[1722362712702,0.303808,65831.0,65824.0,0.18331888]
[1722362712912,0.151909,65829.0,65825.0,0.04690629]
[1722362713121,0.151913,65827.0,65826.0,0.17363304]
[1722362713324,0.759565,65827.0,65826.0,0.00966882]
[1722362713532,0.313175,65842.0,65826.0,0.00966882]
[1722362713533,0.303813,65830.0,65826.0,0.00966882]
[1722362713733,0.009416,65842.0,65828.0,0.0765]
[1722362713849,0.303792,65835.0,65829.0,0.15367074]
[1722362714092,0.303792,65835.0,65830.0,0.023]
[1722362714093,0.151897,65834.0,65830.0,0.023]
[1722362714329,0.151901,65832.0,65831.0,0.03412509]
[1722362714583,0.151901,65832.0,65831.0,0.04678916]
[1722362714584,0.759507,65832.0,65831.0,0.04678916]
[1722362714819,0.759507,65832.0,65831.0,0.04375137]
[1722362715303,0.455704,65832.0,65831.0,0.04375137]
[1722362715580,1.06331,65832.0,65831.0,0.00962628]
[1722362715827,0.455802,65818.0,65817.0,0.0611]
[1722362716071,0.75967,65818.0,65817.0,0.07930073]
[1722362716341,0.75967,65818.0,65817.0,0.08904614]
[1722362716571,1.063538,65818.0,65817.0,0.08904614]
[1722362716803,0.0662,65818.0,65803.0,0.04530734]
[1722362717041,0.0662,65818.0,65801.0,0.13176102]
[1722362717042,0.759855,65802.0,65801.0,0.0638]
[1722362717277,0.759855,65802.0,65801.0,0.08229488]
[1722362717537,0.303927,65806.0,65801.0,0.08229488]
[1722362717538,0.1,65817.0,65801.0,0.30827508]
[1722362717766,0.1,65824.0,65809.0,0.0638]
[1722362717973,0.303878,65816.0,65810.0,0.1536716]
[1722362718201,0.151943,65814.0,65810.0,0.1536716]
[1722362718401,0.151943,65814.0,65811.0,0.05228188]
[1722362718602,0.1,65824.0,65811.0,0.05228188]
[1722362718603,0.303865,65819.0,65811.0,0.20291492]
[1722362718874,0.151945,65813.0,65812.0,0.03001395]
[1722362719079,0.30388,65816.0,65812.0,0.02697535]
[1722362719279,0.303853,65822.0,65814.0,0.0612]
[1722362719466,0.151929,65820.0,65815.0,0.21845761]
[1722362719621,0.0015542,65819.0,65815.0,0.21541937]
[1722362719827,0.54444115,65833.0,65814.0,0.0612]
[1722362719828,0.455823,65815.0,65814.0,0.0612]
[1722362720023,0.151957,65808.0,65807.0,0.0779]
[1722362720259,0.275,65829.0,65807.0,0.25932304]
[1722362720457,0.151955,65809.0,65808.0,0.061]
[1722362720669,0.759773,65809.0,65808.0,0.084]
[1722362720837,1.063682,65809.0,65808.0,0.077969]
[1722362721044,0.455898,65804.0,65803.0,0.061]
[1722362721676,0.1817,65819.0,65798.0,0.061]
[1722362721677,0.455932,65799.0,65798.0,0.061]
[1722362721918,0.303882,65815.0,65792.0,0.1416]
[1722362721919,0.275,65815.0,65792.0,0.1416]
[1722362722120,0.151989,65794.0,65793.0,0.01416]
[1722362722332,0.151984,65797.0,65793.0,0.01416]
[1722362722534,0.25213647,65814.0,65793.0,0.01416]
[1722362722535,0.303955,65800.0,65794.0,0.015576]
[1722362722757,0.455961,65795.0,65794.0,0.015576]
[1722362723167,0.303958,65799.0,65794.0,0.16620904]
[1722362723375,0.74833615,65813.0,65795.0,0.19239007]
[1722362723581,0.0817,65819.0,65795.0,0.19239007]
[1722362723582,0.0015542,65812.0,65800.0,0.01]
[1722362723785,0.0015542,65818.0,65804.0,0.0806]
[1722362723989,0.0015542,65818.0,65807.0,0.01]
[1722362724202,0.0015542,65818.0,65808.0,0.18649367]
[1722362724203,0.151946,65813.0,65808.0,0.18649367]
[1722362724404,0.303882,65815.0,65809.0,0.01584031]
[1722362724618,0.0015542,65818.0,65810.0,0.18343803]
[1722362724619,0.45585,65811.0,65810.0,0.18343803]
[1722362724819,0.45585,65811.0,65810.0,0.20946586]
[1722362725248,0.45585,65811.0,65810.0,0.03583282]
[1722362725450,0.455857,65810.0,65809.0,0.01584031]
[1722362725659,0.151952,65810.0,65809.0,0.18947335]
[1722362725859,0.455857,65810.0,65809.0,0.19928685]
[1722362726063,1.063667,65810.0,65809.0,0.0098135]
[1722362726290,0.0617,65817.0,65801.0,0.0618]
[1722362726513,0.0617,65817.0,65809.0,0.0098135]
[1722362726514,0.759762,65810.0,65809.0,0.0098135]
[1722362726720,0.759762,65810.0,65794.0,0.0657]
[1722362726721,0.151987,65795.0,65794.0,0.0657]
[1722362726919,0.0812,65811.0,65794.0,0.21633304]
[1722362727151,0.151984,65797.0,65795.0,0.01439]
[1722362727512,0.151984,65797.0,65796.0,0.0099242]
[1722362727724,0.455949,65797.0,65796.0,0.0099242]
[1722362727938,0.759914,65797.0,65796.0,0.04180892]
[1722362728190,0.759914,65797.0,65796.0,0.0099242]
[1722362728191,1.063879,65797.0,65796.0,0.0099242]
[1722362728351,1.367844,65797.0,65796.0,0.0099242]
[1722362728550,0.151999,65790.0,65786.0,0.00083]
[1722362728751,0.0666,65805.0,65787.0,0.014473]
[1722362728922,0.456009,65788.0,65787.0,0.02447385]
[1722362729145,0.152003,65788.0,65787.0,0.014473]
[1722362729344,0.456009,65788.0,65787.0,0.014473]
[1722362729585,0.760015,65788.0,65787.0,0.014473]
[1722362729791,1.05224804,65788.0,65760.0,0.11343378]
[1722362730041,1.05224804,65788.0,65750.0,1.89864856]
[1722362730042,1.096619,65751.0,65750.0,1.89864856]
[1722362730296,1.70999788,65751.0,65750.0,1.89864856]
[1722362730505,1.096619,65751.0,65750.0,1.89864856]
[1722362730695,1.174619,65751.0,65750.0,1.89864856]
[1722362730904,0.01,65753.0,65750.0,1.89864856]
[1722362731103,0.01,65753.0,65750.0,2.16305465]
[1722362731104,0.162085,65753.0,65750.0,2.16305465]
[1722362731280,0.0015542,65752.0,65751.0,0.26440609]
[1722362731519,0.0015542,65752.0,65750.0,1.89864856]
[1722362731931,0.1536412,65752.0,65750.0,1.89864856]
[1722362732142,0.152088,65751.0,65750.0,1.89864856]
[1722362732346,0.0015542,65752.0,65751.0,0.18149827]
[1722362732347,0.304173,65752.0,65751.0,0.18149827]
[1722362732556,0.456265,65751.0,65750.0,1.89864856]
[1722362732777,0.0015542,65754.0,65750.0,1.89864856]
[1722362732990,0.02385992,65752.0,65751.0,0.15367451]
[1722362733238,0.02385992,65752.0,65751.0,0.17667451]
[1722362733441,0.02385992,65752.0,65751.0,0.17363304]
[1722362733684,0.02385992,65752.0,65750.0,1.89864856]
[1722362734169,0.1536422,65751.0,65750.0,1.89964856]
[1722362734426,0.0015542,65751.0,65750.0,2.0502816]
[1722362734680,0.0015542,65751.0,65750.0,2.1527816]
[1722362734921,0.02585992,65752.0,65750.0,2.1427816]
[1722362735163,0.02585992,65752.0,65751.0,0.32876219]
[1722362735444,0.02585992,65752.0,65751.0,1.07736335]
[1722362735645,0.006,65754.0,65753.0,0.456252]
[1722362735854,0.0014542,65778.0,65754.0,0.1424]
[1722362736116,0.0014542,65778.0,65760.0,0.304135]
[1722362736117,0.0214542,65778.0,65760.0,0.304135]
[1722362736333,0.0214542,65778.0,65764.0,0.152058]
[1722362736560,0.162018,65782.0,65767.0,0.0664]
[1722362736837,0.152022,65780.0,65768.0,0.2552733]
[1722362737078,0.45607,65780.0,65769.0,0.03216733]
[1722362737289,0.02,65792.0,65773.0,0.15063304]
[1722362737500,0.005,65778.0,65774.0,0.02088406]
[1722362737712,0.005,65778.0,65775.0,0.17363304]
[1722362737930,0.02,65793.0,65776.0,0.00303992]
[1722362738133,0.01,65792.0,65777.0,0.17363304]
[1722362738352,0.005,65780.0,65777.0,0.17363304]
[1722362738567,0.01,65787.0,65777.0,0.17363304]
[1722362738777,0.02,65792.0,65778.0,0.18120221]
[1722362738982,0.303973,65796.0,65778.0,0.18120221]
[1722362738983,0.02,65793.0,65779.0,0.17363304]
[1722362739192,0.151997,65791.0,65780.0,0.05588654]
[1722362739414,0.151997,65791.0,65781.0,0.17363304]
[1722362739626,0.02,65795.0,65782.0,0.15505573]
[1722362739829,0.151982,65797.0,65784.0,0.0821]
[1722362740038,0.02,65798.0,65785.0,0.21170082]
[1722362740255,0.30393,65805.0,65789.0,0.152]
[1722362740256,0.151969,65803.0,65789.0,0.152]
[1722362740471,0.151969,65803.0,65790.0,0.21600923]
[1722362740730,0.151974,65801.0,65791.0,0.023]
[1722362741002,0.32713837,65836.0,65792.0,0.19047356]
[1722362741003,0.01,65809.0,65792.0,0.19047356]
[1722362741203,0.151962,65806.0,65793.0,0.023]
[1722362741408,0.151954,65809.0,65795.0,0.151985]
[1722362741617,0.151954,65809.0,65796.0,0.17667203]
[1722362741618,0.151955,65809.0,65796.0,0.17667203]
[1722362741869,0.151955,65809.0,65797.0,0.07249898]
[1722362742123,0.151953,65810.0,65798.0,0.17363304]
[1722362742334,0.01,65811.0,65799.0,0.04179597]
[1722362742592,0.151955,65809.0,65800.0,0.17363304]
[1722362742836,0.153955,65809.0,65800.0,0.18026617]
[1722362743086,0.01,65811.0,65801.0,0.02554908]
[1722362743087,0.15195,65811.0,65801.0,0.02554908]
[1722362743332,0.303925,65806.0,65802.0,0.25573304]
[1722362743624,0.313922,65807.0,65802.0,0.28712253]
[1722362743863,0.01,65807.0,65802.0,0.26236141]
[1722362744112,0.303924,65806.0,65802.0,0.26236141]
[1722362744359,0.151967,65804.0,65802.0,0.26236141]
[1722362744603,0.01,65808.0,65803.0,0.02623614]
[1722362744837,0.151965,65805.0,65803.0,0.17686918]
[1722362745043,0.151964,65805.0,65804.0,0.00662361]
[1722362745158,0.151962,65806.0,65804.0,0.03548289]
[1722362745373,0.303898,65812.0,65805.0,0.15063304]
[1722362745662,0.313894,65813.0,65806.0,0.00965773]
[1722362745663,0.08356956,65811.0,65806.0,0.00965773]
[1722362745842,0.07497787,65810.0,65807.0,0.0325001]
[1722362746081,0.01,65809.0,65808.0,0.00661408]
[1722362746333,0.002,65811.0,65809.0,0.01897472]
[1722362746560,0.01,65812.0,65809.0,0.01897472]
[1722362746795,0.161948,65812.0,65810.0,0.02087219]
[1722362746998,0.161948,65812.0,65810.0,0.02748151]
[1722362747244,0.01,65812.0,65811.0,0.01811533]
[1722362747483,0.07560966,65812.0,65811.0,0.17535531]
[1722362747698,0.009427,65818.0,65811.0,0.18023998]
[1722362747902,0.009427,65818.0,65812.0,0.16865704]